bitfinex-derivatives/quotes_BTCF0:USTF0_20251120
["timestamp","ask_amount","ask_price","bid_price","bid_amount"]
[1763666328510,0.28401606,86597.0,86596.0,0.00017318]
[1763666328996,0.28401606,86597.0,86581.0,0.3608]
[1763666328997,0.28262,86582.0,86581.0,0.3608]
[1763666329198,0.29542646,86582.0,86581.0,0.00153464]
[1763666330996,0.15890646,86582.0,86581.0,0.00153464]
[1763666331196,0.01280646,86582.0,86581.0,0.36233464]
[1763666331400,0.00139606,86582.0,86581.0,0.63808464]
[1763666331598,0.00139606,86582.0,86581.0,0.64964834]
[1763666331909,0.00017318,86590.0,86589.0,0.27575]
[1763666332095,0.00017318,86590.0,86589.0,0.63808464]
[1763666332295,0.06153564,86608.0,86603.0,0.13845]
[1763666332507,0.00139606,86607.0,86603.0,0.13845]
[1763666332703,0.00139606,86607.0,86589.0,0.3608]
[1763666332704,0.3608,86606.0,86589.0,0.3608]
[1763666332909,0.00139606,86605.0,86599.0,0.3608]
[1763666333101,0.00139606,86605.0,86604.0,0.00153464]
[1763666333302,0.06153564,86613.0,86612.0,0.27575]
[1763666333303,0.00017318,86613.0,86612.0,0.27575]
[1763666333603,0.00139606,86613.0,86612.0,0.63808464]
[1763666334407,0.29532723,86613.0,86612.0,0.00153464]
[1763666334603,0.28401606,86613.0,86612.0,0.00153464]
[1763666335004,0.00139606,86613.0,86612.0,0.27728464]
[1763666335202,0.00139606,86613.0,86612.0,0.63808464]
[1763666335414,0.00139606,86613.0,86612.0,0.50078464]
[1763666335708,0.00139606,86613.0,86612.0,0.36233464]
[1763666336705,0.00139606,86613.0,86612.0,0.63808464]
[1763666336904,0.01286885,86613.0,86612.0,0.36233464]
[1763666337408,0.01286885,86613.0,86612.0,0.63808464]
[1763666337605,0.01386885,86613.0,86612.0,0.27728464]
[1763666338503,0.01247279,86613.0,86612.0,0.27728464]
[1763666339105,0.00017318,86621.0,86620.0,0.2873085]
[1763666339301,0.00017318,86621.0,86620.0,0.64964314]
[1763666339504,0.00017318,86621.0,86620.0,1.04964314]
[1763666339807,0.08198681,86650.0,86620.0,1.04964314]
[1763666339808,0.17437564,86645.0,86644.0,0.13845]
[1763666340007,0.11423606,86645.0,86644.0,0.27728464]
[1763666340203,0.00139606,86645.0,86644.0,0.00153464]
[1763666340408,0.28401606,86645.0,86644.0,0.00153464]
[1763666340604,0.00139606,86645.0,86644.0,0.27728464]
[1763666341012,0.0617868,86653.0,86652.0,0.27575]
[1763666341316,0.0617868,86665.0,86658.0,0.27575]
[1763666341504,0.0617868,86665.0,86653.0,0.00017318]
[1763666341505,0.28262,86654.0,86653.0,0.00017318]
[1763666341705,0.28401606,86654.0,86653.0,0.00170782]
[1763666342313,0.00139606,86654.0,86653.0,0.00170782]
[1763666342512,0.12973606,86654.0,86653.0,0.00170782]
[1763666342706,0.12973606,86654.0,86653.0,0.28568782]
[1763666342707,0.00139606,86654.0,86653.0,0.28568782]
[1763666343108,0.00139606,86654.0,86653.0,0.00170782]
[1763666343308,0.27218606,86654.0,86653.0,0.00170782]
[1763666343504,0.63298606,86654.0,86653.0,0.00017318]
[1763666343810,0.63298606,86654.0,86630.0,0.3608]
[1763666344014,0.3608,86647.0,86631.0,0.00153464]
[1763666344215,0.27218606,86632.0,86631.0,0.00153464]
[1763666344919,0.27079,86624.0,86623.0,0.00017318]
[1763666345211,0.00139606,86624.0,86623.0,0.36250782]
[1763666345419,0.00139606,86624.0,86623.0,0.64648782]
[1763666345819,0.06174431,86638.0,86623.0,0.28568782]
[1763666346014,0.00139606,86637.0,86636.0,0.13796]
[1763666346214,0.00139606,86637.0,86636.0,0.28551464]
[1763666346616,0.00139606,86637.0,86636.0,0.00153464]
[1763666347512,0.06174943,86638.0,86637.0,0.0115562]
[1763666347707,0.08198681,86648.0,86637.0,0.0115562]
[1763666347708,0.0411795,86648.0,86645.0,0.0115552]
[1763666347910,0.06174943,86662.0,86652.0,0.33097]
[1763666348117,0.06174943,86668.0,86667.0,0.28398]
[1763666348320,0.01148976,86677.0,86676.0,0.28398]
[1763666348516,0.36219606,86677.0,86661.0,0.3608]
[1763666348715,0.63298606,86677.0,86676.0,0.00153464]
[1763666349223,0.64435809,86677.0,86660.0,0.00017307]
[1763666349413,0.06172885,86668.0,86661.0,0.00153464]
[1763666349609,0.06172885,86671.0,86670.0,0.28398]
[1763666349822,0.01337203,86677.0,86673.0,0.13796]
[1763666349823,0.06172885,86674.0,86673.0,0.13796]
[1763666350020,0.00139606,86674.0,86673.0,0.28551464]
[1763666350221,0.01337203,86677.0,86676.0,0.28398]
[1763666350421,0.01476809,86677.0,86676.0,0.28551464]
[1763666350619,0.01276809,86677.0,86676.0,0.00153464]
[1763666351810,0.01276809,86677.0,86676.0,0.13949464]
[1763666352014,0.06172885,86686.0,86685.0,0.13796]
[1763666352218,0.06304324,86686.0,86685.0,0.13949464]
[1763666352527,0.01273723,86686.0,86685.0,0.28551464]
[1763666353212,0.01273723,86686.0,86685.0,0.00153464]
[1763666353213,0.28352723,86686.0,86685.0,0.00153464]
[1763666353423,0.28552723,86686.0,86685.0,0.00153464]
[1763666353719,0.27079,86678.0,86677.0,0.00017307]
[1763666353915,0.27218606,86678.0,86677.0,0.00170771]
[1763666354224,0.00139606,86678.0,86677.0,0.28568771]
[1763666355320,0.00139606,86678.0,86677.0,0.00017307]
[1763666355321,0.27218606,86678.0,86677.0,0.00017307]
[1763666355526,0.27218606,86678.0,86677.0,0.00170771]
[1763666355732,0.27218606,86678.0,86677.0,0.00017307]
[1763666356023,0.27418606,86678.0,86677.0,0.00017307]
[1763666356229,0.27079,86663.0,86655.0,0.3608]
[1763666356424,0.00139606,86656.0,86655.0,0.36233464]
[1763666357225,0.27079,86648.0,86647.0,0.00017307]
[1763666357418,0.00139606,86648.0,86647.0,0.13966771]
[1763666357618,0.00139606,86648.0,86647.0,0.00170771]
[1763666357927,0.27218606,86648.0,86647.0,0.00170771]
[1763666358227,0.63298606,86648.0,86647.0,0.00170771]
[1763666358531,0.63298606,86648.0,86638.0,0.3608]
[1763666358823,0.3608,86639.0,86621.0,0.3608]
[1763666359013,0.63378803,86630.0,86619.0,0.3608]
[1763666359217,0.27079,86620.0,86609.0,0.3608]
[1763666359519,0.00219803,86619.0,86618.0,0.28398]
[1763666360122,0.00228701,86619.0,86618.0,0.28398]
[1763666360323,0.01375594,86619.0,86618.0,0.13796]
[1763666360516,0.00228701,86619.0,86616.0,0.3608]
[1763666360822,0.00228701,86619.0,86618.0,0.13796]
[1763666361132,0.00228701,86619.0,86616.0,0.3608]
[1763666361425,0.00228701,86619.0,86606.0,0.00017318]
[1763666361426,0.27079,86607.0,86606.0,0.00017318]
[1763666361634,0.27311698,86607.0,86606.0,0.00017318]
[1763666361833,0.00232698,86607.0,86606.0,0.00017318]
[1763666362017,0.01143545,86621.0,86606.0,0.00017318]
[1763666362018,0.06151081,86615.0,86606.0,0.76097318]
[1763666362217,0.01154281,86630.0,86622.0,0.28398]
[1763666362417,0.01154281,86630.0,86622.0,0.64478]
[1763666362632,0.00237121,86623.0,86622.0,0.28398]
[1763666363230,0.00237121,86623.0,86614.0,0.3608]
[1763666363425,0.00237121,86623.0,86622.0,0.3608]
[1763666363823,0.00017318,86623.0,86622.0,0.64478]
[1763666364116,0.00237121,86623.0,86622.0,0.64478]
[1763666364322,0.00237121,86623.0,86622.0,0.28398]
[1763666364641,0.00237121,86623.0,86621.0,0.3608]
[1763666364927,0.27079,86622.0,86621.0,0.3608]
[1763666365125,0.27298803,86622.0,86621.0,0.3608]
[1763666365520,0.27298803,86622.0,86607.0,0.11276]
[1763666365718,0.27079,86607.0,86598.0,0.3608]
[1763666365927,0.27298803,86607.0,86590.0,0.3608]
[1763666366123,0.00219803,86607.0,86599.0,0.3608]
[1763666367028,0.00219803,86607.0,86606.0,0.49876]
[1763666367230,0.00219803,86607.0,86606.0,0.64478]
[1763666367530,0.27298803,86607.0,86599.0,0.3608]
[1763666368027,0.3608,86603.0,86594.0,0.00017318]
[1763666368329,0.27298803,86595.0,86594.0,0.00017318]
[1763666368925,0.27079,86586.0,86585.0,0.3608]
[1763666369228,0.63378803,86586.0,86569.0,0.3608]
[1763666370023,0.63478803,86586.0,86569.0,0.36097318]
[1763666370426,0.63478803,86586.0,86569.0,0.00017318]
[1763666370427,0.3608,86575.0,86569.0,0.00017318]
[1763666370625,0.25758803,86570.0,86569.0,0.00017318]
[1763666372530,0.24828,86566.0,86545.0,0.3608]
[1763666372730,0.00219803,86546.0,86545.0,0.3608]
[1763666372933,0.3608,86560.0,86545.0,0.6167685]
[1763666373134,0.00219803,86559.0,86558.0,0.2444]
[1763666373654,0.00229768,86559.0,86558.0,0.2444]
[1763666374855,0.00229768,86559.0,86550.0,0.0001733]
[1763666375652,0.00229768,86559.0,86533.0,0.3608]
[1763666375653,0.60908,86551.0,86533.0,0.3608]
[1763666375954,0.00219803,86534.0,86533.0,0.48611]
[1763666376152,0.00229768,86534.0,86533.0,0.3608]
[1763666376544,0.00229768,86534.0,86533.0,0.6052]
[1763666376744,9.965e-05,86534.0,86533.0,0.6052]
[1763666376958,0.0001733,86542.0,86541.0,0.255969]
[1763666377150,0.0001733,86542.0,86541.0,0.6052]
[1763666377357,0.00237133,86542.0,86541.0,0.6052]
[1763666377743,0.00237133,86542.0,86525.0,0.00011592]
[1763666377950,0.24828,86526.0,86525.0,0.00011592]
[1763666378151,0.25047803,86526.0,86525.0,0.00011592]
[1763666378362,0.24828,86507.0,86500.0,0.3608]
[1763666378562,0.00219803,86507.0,86500.0,0.3608]
[1763666378752,0.00219803,86507.0,86506.0,0.12541418]
[1763666379354,0.00219803,86507.0,86506.0,0.24450418]
[1763666379553,0.0001734,86515.0,86514.0,0.2444]
[1763666379760,0.0001734,86515.0,86514.0,0.6052]
[1763666379962,0.3608,86536.0,86514.0,0.3608]
[1763666380157,0.00219803,86535.0,86531.0,0.3608]
[1763666380462,0.11284,86546.0,86535.0,0.0115698]
[1763666380659,0.00219803,86545.0,86544.0,0.2444]
[1763666380858,0.00219803,86545.0,86531.0,0.3608]
[1763666380859,0.25047803,86545.0,86531.0,0.3608]
[1763666381256,0.00219803,86545.0,86541.0,0.3608]
[1763666382266,0.00319803,86545.0,86544.0,0.12531]
[1763666382653,0.00219803,86545.0,86544.0,0.12531]
[1763666382854,0.00419803,86545.0,86541.0,0.3608]
[1763666383753,0.24828,86542.0,86531.0,0.3608]
[1763666383951,0.00219803,86541.0,86531.0,0.3608]
[1763666384266,0.00219803,86541.0,86539.0,0.3608]
[1763666384956,0.00219803,86541.0,86540.0,0.12531]
[1763666385163,0.0001734,86547.0,86546.0,0.2444]
[1763666385360,0.00237143,86547.0,86546.0,0.6167684]
[1763666385566,0.00237143,86547.0,86546.0,0.6052]
[1763666385966,3.4e-06,86547.0,86546.0,0.6052]
[1763666386157,0.3608,86574.0,86558.0,0.2444]
[1763666386352,0.3608,86574.0,86546.0,0.3608]
[1763666386353,0.00219803,86562.0,86561.0,0.12531]
[1763666386867,0.00219803,86562.0,86561.0,0.2559664]
[1763666387052,0.11288,86592.0,86570.0,0.2444]
[1763666387257,0.3608,86581.0,86572.0,0.0001733]
[1763666387461,0.3608,86581.0,86573.0,0.00219803]
[1763666387761,0.00073267,86574.0,86573.0,0.00219803]
[1763666388664,0.00073267,86574.0,86573.0,0.24659803]
[1763666388962,0.01371007,86581.0,86580.0,0.2444]
[1763666389164,0.01444274,86581.0,86580.0,0.60739803]
[1763666389359,0.01444274,86581.0,86580.0,0.36299803]
[1763666389558,0.33907274,86581.0,86580.0,0.00219803]
[1763666389958,0.01444274,86581.0,86580.0,0.00219803]
[1763666390162,0.01444274,86581.0,86580.0,0.48830803]
[1763666390363,0.01444274,86581.0,86580.0,0.60739803]
[1763666390759,0.0001733,86590.0,86580.0,0.60739803]
[1763666390955,0.0001733,86590.0,86580.0,0.36299803]
[1763666390956,0.3608,86589.0,86580.0,0.36299803]
[1763666391161,0.00073267,86581.0,86580.0,0.24659803]
[1763666391361,0.00273267,86581.0,86580.0,0.60739803]
[1763666391764,0.00073267,86581.0,86580.0,0.60739803]
[1763666392563,0.00273267,86581.0,86580.0,0.60739803]
[1763666393067,0.002,86581.0,86580.0,0.60739803]
[1763666393564,0.0001733,86590.0,86589.0,0.2444]
[1763666393762,0.0001733,86590.0,86589.0,0.61896063]
[1763666393959,0.0001733,86590.0,86589.0,0.60739803]
[1763666394157,0.00090597,86590.0,86589.0,0.36299803]
[1763666394356,0.01228025,86590.0,86589.0,0.36299803]
[1763666394758,0.01228025,86590.0,86589.0,0.00219803]
[1763666395671,0.01428025,86590.0,86589.0,0.24659803]
[1763666396261,0.13813025,86590.0,86589.0,0.00219803]
[1763666396772,0.26256025,86590.0,86589.0,0.00219803]
[1763666398068,0.24828,86586.0,86585.0,0.3608]
[1763666398274,0.31038134,86586.0,86585.0,0.3608]
[1763666398668,0.24901267,86586.0,86585.0,0.3608]
[1763666399171,0.24901267,86586.0,86585.0,0.36299803]
[1763666399367,0.24901267,86586.0,86585.0,0.3608]
[1763666399874,0.24901267,86586.0,86585.0,0.36299803]
[1763666400272,0.24828,86576.0,86575.0,0.3608]
[1763666400466,0.24901267,86576.0,86575.0,0.36299803]
[1763666401066,0.24828,86573.0,86572.0,0.0001733]
[1763666401266,0.00073267,86573.0,86572.0,0.24677133]
[1763666401667,0.001,86576.0,86575.0,0.2444]
[1763666401871,0.04096037,86584.0,86581.0,0.11909]
[1763666402070,0.04096031,86584.0,86583.0,0.60739803]
[1763666402372,0.00073267,86584.0,86583.0,0.60739803]
[1763666402673,0.04096031,86584.0,86583.0,0.59907803]
[1763666402972,0.04096031,86590.0,86587.0,0.2476429]
[1763666403167,0.0613934,86602.0,86601.0,0.23608]
[1763666403366,0.14441538,86630.0,86611.0,0.23608]
[1763666403367,0.06212607,86613.0,86611.0,0.23608]
[1763666403566,0.00073267,86613.0,86612.0,0.61063763]
[1763666403774,0.0613934,86623.0,86622.0,0.23608]
[1763666403978,0.0613934,86631.0,86622.0,0.59907803]
[1763666404172,0.0613934,86631.0,86630.0,0.59688]
[1763666404173,0.00017319,86631.0,86630.0,0.59688]
[1763666404472,0.00017319,86631.0,86630.0,0.59907803]
[1763666404679,0.0613934,86649.0,86646.0,0.11137]
[1763666404863,0.0613934,86649.0,86630.0,0.36299803]
[1763666404864,0.00073267,86648.0,86647.0,0.00219803]
[1763666405173,0.11284,86661.0,86647.0,0.00219803]
[1763666405174,0.0613934,86667.0,86660.0,0.23608]
[1763666405374,0.59489,86662.0,86661.0,0.00219803]
[1763666405574,0.59562267,86662.0,86661.0,0.00219803]
[1763666405777,0.59562267,86662.0,86653.0,0.00017308]
[1763666405778,0.23409,86654.0,86653.0,0.00017308]
[1763666405978,0.59562267,86654.0,86653.0,0.00017308]
[1763666406278,0.23409,86629.0,86628.0,0.3608]
[1763666406468,0.23409,86629.0,86612.0,0.3608]
[1763666406469,0.23482267,86629.0,86612.0,0.3608]
[1763666406670,0.23482267,86629.0,86596.0,0.36299803]
[1763666406671,0.23409,86610.0,86596.0,0.36299803]
[1763666406977,0.00073267,86609.0,86608.0,0.23608]
[1763666407171,0.00073267,86609.0,86608.0,0.00219803]
[1763666408166,0.00017319,86617.0,86616.0,0.23608]
[1763666408370,0.00090586,86617.0,86616.0,0.23827803]
[1763666408875,0.4221934,86635.0,86616.0,0.43381803]
[1763666409072,0.00073267,86628.0,86627.0,0.59688]
[1763666409273,0.00073267,86628.0,86627.0,0.59907803]
[1763666409474,0.0613934,86641.0,86639.0,0.11137]
[1763666409678,0.00073267,86640.0,86639.0,0.11137]
[1763666409869,0.00073267,86640.0,86639.0,0.11356803]
[1763666410069,0.00073267,86640.0,86639.0,0.23827803]
[1763666410671,0.00073267,86640.0,86639.0,0.00219803]
[1763666410672,0.23482267,86640.0,86639.0,0.00219803]
[1763666411065,0.00073267,86640.0,86639.0,0.00219803]
[1763666411266,0.4221934,86646.0,86645.0,0.23608]
[1763666411471,0.00017319,86648.0,86646.0,0.11137]
[1763666411671,0.00090586,86648.0,86647.0,0.00219803]
[1763666412973,0.23499586,86648.0,86647.0,0.00219803]
[1763666413167,0.23799586,86648.0,86647.0,0.00219803]
[1763666413381,0.29938926,86648.0,86647.0,0.00219803]
[1763666413582,0.06529926,86648.0,86647.0,0.11356803]
[1763666413777,0.00390586,86648.0,86647.0,0.11356803]
[1763666414080,0.00390586,86648.0,86647.0,0.23827803]
[1763666414279,0.0613934,86665.0,86664.0,0.23608]
[1763666414578,0.0613934,86689.0,86678.0,0.23608]
[1763666414782,0.00073267,86683.0,86681.0,0.3608]
[1763666414982,0.23409,86682.0,86681.0,0.00219803]
[1763666415275,0.00073267,86682.0,86681.0,0.11356803]
[1763666415478,0.00073267,86682.0,86681.0,0.59907803]
[1763666416069,0.23482267,86682.0,86681.0,0.36299803]
[1763666416284,0.23482267,86682.0,86673.0,0.00017308]
[1763666416285,0.23409,86674.0,86673.0,0.00017308]
[1763666416472,0.23409,86663.0,86653.0,0.3608]
[1763666416672,0.23409,86663.0,86645.0,0.3608]
[1763666416673,0.1139,86646.0,86645.0,0.3608]
[1763666416878,0.23482267,86646.0,86635.0,0.3608]
[1763666417078,0.23409,86636.0,86635.0,0.3608]
[1763666417276,0.23409,86628.0,86627.0,0.3608]
[1763666417586,0.23409,86628.0,86619.0,0.3608]
[1763666417587,0.23409,86621.0,86620.0,0.00219803]
[1763666417781,0.23482267,86621.0,86620.0,0.00219803]
[1763666417984,0.23482267,86621.0,86619.0,0.00017308]
[1763666417985,0.23409,86620.0,86619.0,0.00017308]
[1763666418282,0.23482267,86620.0,86619.0,7.308e-05]
[1763666418481,0.23482267,86620.0,86584.0,0.3608]
[1763666418679,0.3608,86605.0,86601.0,0.00219803]
[1763666418889,0.00073267,86602.0,86601.0,0.59907803]
[1763666419081,0.01169357,86621.0,86601.0,0.36299803]
[1763666419278,0.00073267,86620.0,86615.0,0.3607]
[1763666419580,0.00073267,86620.0,86616.0,0.00219803]
[1763666420274,0.23409,86617.0,86616.0,0.00209803]
[1763666420474,0.23492267,86617.0,86616.0,0.00209803]
[1763666420980,0.00083267,86617.0,86616.0,0.00199803]
[1763666421184,0.00083267,86617.0,86616.0,0.11336803]
[1763666421383,0.00083267,86617.0,86616.0,0.47416803]
[1763666421582,0.00083267,86617.0,86616.0,0.47406803]
[1763666421780,0.23492267,86617.0,86616.0,0.00189803]
[1763666422184,0.00083267,86617.0,86609.0,0.00017319]
[1763666422378,0.00083267,86617.0,86616.0,0.36269803]
[1763666423888,0.01176127,86625.0,86624.0,0.23608]
[1763666424182,0.00017319,86626.0,86624.0,0.59877803]
[1763666424488,0.3608,86647.0,86637.0,0.23608]
[1763666424789,0.23409,86639.0,86638.0,0.00189803]
[1763666425088,0.23409,86635.0,86624.0,0.3608]
[1763666425281,0.23409,86635.0,86625.0,0.00189803]
[1763666425584,0.00103267,86626.0,86625.0,0.11326803]
[1763666426082,0.00103267,86626.0,86625.0,0.00189803]
[1763666426282,0.23512267,86626.0,86625.0,0.00189803]
[1763666427379,0.00103267,86626.0,86625.0,0.36269803]
[1763666427583,0.00103267,86626.0,86621.0,0.00017319]
[1763666427584,0.23409,86622.0,86621.0,0.00017319]
[1763666427785,0.23512267,86622.0,86621.0,0.00017319]
[1763666427979,0.23512267,86622.0,86621.0,0.00207122]
[1763666428188,0.00103267,86622.0,86621.0,0.59895122]
[1763666429189,0.00017319,86638.0,86621.0,0.59895122]
[1763666429377,0.00103267,86637.0,86621.0,0.59895122]
[1763666429579,0.00103267,86637.0,86636.0,0.23608]
[1763666429883,0.00103267,86637.0,86636.0,0.23797803]
[1763666430187,3.19e-06,86638.0,86637.0,0.23608]
[1763666430382,0.15053327,86670.0,86637.0,0.23608]
[1763666430383,0.37425401,86665.0,86646.0,0.21555]
[1763666430590,0.00103267,86658.0,86654.0,0.3608]
[1763666430894,0.00103267,86658.0,86655.0,0.00189803]
[1763666431393,0.20142,86656.0,86655.0,0.00189803]
[1763666431587,0.20142,86649.0,86648.0,0.00017319]
[1763666431891,0.20245267,86649.0,86648.0,0.00207122]
[1763666432893,0.20445267,86649.0,86648.0,0.00207122]
[1763666433084,0.10287267,86649.0,86648.0,0.00207122]
[1763666433288,0.00103267,86649.0,86648.0,0.20792122]
[1763666433601,0.00303267,86649.0,86648.0,0.20782122]
[1763666433781,0.00303267,86649.0,86648.0,0.00197122]
[1763666433984,0.00103267,86649.0,86648.0,0.00197122]
[1763666434184,0.00303267,86649.0,86648.0,0.00197122]
[1763666434485,0.00303267,86649.0,86648.0,0.10105122]
[1763666434688,0.00303267,86649.0,86648.0,0.20772122]
[1763666434892,0.00303267,86649.0,86648.0,0.10105122]
[1763666435085,0.21172,86640.0,86632.0,0.3608]
[1763666435287,0.21277948,86633.0,86632.0,0.3608]
[1763666435588,0.00105948,86633.0,86632.0,0.00187122]
[1763666435788,0.00105948,86633.0,86632.0,0.36267122]
[1763666435988,0.00105948,86633.0,86632.0,0.56852122]
[1763666436197,0.00105948,86633.0,86632.0,0.56842122]
[1763666436583,0.21277948,86633.0,86632.0,0.00167122]
[1763666437186,0.21377948,86633.0,86632.0,0.00157122]
[1763666437388,0.00205948,86633.0,86632.0,0.10075122]
[1763666437690,0.00205948,86633.0,86632.0,0.56812122]
[1763666437899,0.00245948,86633.0,86632.0,0.56812122]
[1763666438492,0.00017319,86641.0,86640.0,0.2174058]
[1763666438798,0.00173267,86641.0,86640.0,0.56802122]
[1763666439091,0.00017319,86641.0,86640.0,0.56792122]
[1763666439291,0.04105915,86651.0,86650.0,0.2174045]
[1763666439493,0.04105915,86663.0,86658.0,0.20585]
[1763666439691,0.06129401,86667.0,86662.0,0.00137122]
[1763666439896,0.00155948,86663.0,86662.0,0.00137122]
[1763666440288,0.00155948,86663.0,86650.0,0.51133327]
[1763666440289,0.21327948,86663.0,86650.0,0.3608]
[1763666440489,0.04109477,86661.0,86651.0,0.00137122]
[1763666440693,0.21327948,86652.0,86651.0,0.00137122]
[1763666440891,0.00155948,86652.0,86651.0,0.20722122]
[1763666441091,0.21327948,86652.0,86651.0,0.00137122]
[1763666441398,0.25437425,86652.0,86651.0,0.00137122]
[1763666441589,0.00155948,86652.0,86651.0,0.20722122]
[1763666441787,0.04109477,86660.0,86659.0,0.2174033]
[1763666441988,0.04109477,86665.0,86664.0,0.2174026]
[1763666442189,0.10299647,86689.0,86664.0,0.2174026]
[1763666442190,0.04109477,86668.0,86665.0,0.20585]
[1763666442393,0.04109477,86671.0,86665.0,0.20722122]
[1763666442595,0.04109477,86679.0,86665.0,0.20722122]
[1763666442794,0.04109477,86678.0,86665.0,0.20722122]
[1763666442991,0.00173256,86666.0,86665.0,0.10055122]
[1763666443186,0.21345256,86666.0,86665.0,0.00137122]
[1763666443485,0.00173256,86666.0,86665.0,0.20722122]
[1763666444091,0.00017308,86666.0,86665.0,0.20722122]
[1763666444487,0.04109477,86679.0,86678.0,0.20585]
[1763666444791,0.04109477,86684.0,86681.0,0.20585]
[1763666444988,0.00155948,86683.0,86682.0,0.20585]
[1763666445194,0.00155948,86683.0,86682.0,0.20722122]
[1763666445900,0.10966948,86683.0,86682.0,0.00137122]
[1763666446497,0.00255948,86683.0,86682.0,0.20722122]
[1763666447196,0.001,86683.0,86682.0,0.56802122]
[1763666447389,0.04109477,86689.0,86687.0,0.20585]
[1763666447591,0.0001147,86691.0,86690.0,0.57957042]
[1763666448106,0.04109477,86704.0,86703.0,0.20585]
[1763666448394,0.04109477,86707.0,86705.0,0.20585]
[1763666448602,0.21172,86707.0,86706.0,0.00137122]
[1763666448795,0.21327948,86707.0,86706.0,0.00137122]
[1763666449202,0.26750447,86707.0,86706.0,0.00137122]
[1763666449603,0.22655444,86707.0,86706.0,0.00137122]
[1763666450000,0.12294444,86707.0,86706.0,0.00137122]
[1763666450193,0.01483444,86707.0,86706.0,0.00137122]
[1763666450602,0.01583444,86707.0,86706.0,0.00137122]
[1763666450900,0.001,86707.0,86706.0,0.20722122]
[1763666451405,0.01320137,86713.0,86712.0,0.20585]
[1763666451705,0.04095755,86723.0,86712.0,0.56802122]
[1763666451897,0.00155948,86721.0,86720.0,0.20585]
[1763666452097,0.00155948,86721.0,86720.0,0.20722122]
[1763666452599,0.21327948,86721.0,86720.0,0.00137122]
[1763666452808,0.00155948,86721.0,86720.0,0.00137122]
[1763666452996,0.10966948,86721.0,86720.0,0.00137122]
[1763666453191,0.21327948,86721.0,86712.0,0.36097298]
[1763666453402,0.21172,86713.0,86712.0,0.0015442]
[1763666453696,0.21327948,86713.0,86712.0,0.0015442]
[1763666453899,0.00155948,86713.0,86712.0,0.0015442]
[1763666454205,0.04095755,86722.0,86717.0,0.2173956]
[1763666454405,0.00155948,86722.0,86721.0,0.56802122]
[1763666454605,0.00155948,86722.0,86721.0,0.57956622]
[1763666454801,0.00155948,86722.0,86721.0,0.56802122]
[1763666455203,0.00155948,86722.0,86721.0,0.20722122]
[1763666455905,0.00155948,86722.0,86721.0,0.00137122]
[1763666456208,0.21327948,86722.0,86721.0,0.00137122]
[1763666456503,0.01331661,86726.0,86725.0,0.20585]
[1763666456692,0.01331661,86726.0,86725.0,0.20722122]
[1763666456693,0.00155948,86726.0,86725.0,0.20722122]
[1763666458311,0.0161867,86726.0,86725.0,0.20722122]
[1763666458495,0.00255948,86726.0,86725.0,0.20722122]
[1763666458896,0.21427948,86726.0,86725.0,0.00127122]
[1763666459195,0.01612249,86726.0,86725.0,0.00127122]
[1763666459401,0.001,86726.0,86725.0,0.20712122]
[1763666459707,0.001,86726.0,86725.0,0.21856572]
[1763666460402,0.21347948,86726.0,86725.0,0.00107122]
[1763666460709,0.00275948,86726.0,86725.0,0.20692122]
[1763666460896,0.00285948,86726.0,86725.0,0.20682122]
[1763666461094,0.21457948,86726.0,86725.0,0.00097122]
[1763666461405,0.00285948,86726.0,86725.0,0.00097122]
[1763666461598,0.00285948,86726.0,86725.0,0.00087122]
[1763666461793,0.21457948,86726.0,86725.0,0.00087122]
[1763666461998,0.21172,86721.0,86720.0,0.3608]
[1763666462206,0.21387948,86721.0,86720.0,0.36157122]
[1763666462409,0.21387948,86721.0,86720.0,0.3608]
[1763666462597,0.21387948,86721.0,86720.0,0.36157122]
[1763666463005,0.21387948,86721.0,86720.0,0.3608]
[1763666463395,0.00215948,86721.0,86720.0,0.56748122]
[1763666464105,0.00215948,86721.0,86720.0,0.57902642]
[1763666464298,0.04095755,86742.0,86735.0,0.0115432]
[1763666464493,0.04095755,86742.0,86741.0,0.00077122]
[1763666464494,0.01574615,86742.0,86741.0,0.00077122]
[1763666464802,0.00215948,86742.0,86741.0,0.20719122]
[1763666466206,0.04095755,86757.0,86749.0,0.2179613]
[1763666466412,0.06455,86768.0,86749.0,0.57953252]
[1763666466413,0.04095755,86763.0,86749.0,0.57953252]
[1763666466708,0.10550755,86768.0,86749.0,0.57953252]
[1763666466907,0.06215948,86750.0,86749.0,0.56799122]
[1763666467300,0.04095755,86769.0,86749.0,0.36157122]
[1763666467506,0.04095755,86775.0,86774.0,0.17186]
[1763666467710,0.04095755,86791.0,86781.0,0.011537]
[1763666468009,0.00215948,86791.0,86790.0,0.00077122]
[1763666468206,0.19947,86777.0,86776.0,0.3608]
[1763666468399,0.40391703,86777.0,86766.0,0.00017285]
[1763666468602,0.60338703,86777.0,86767.0,0.00077122]
[1763666468802,0.09351,86768.0,86767.0,0.00077122]
[1763666469002,0.26054948,86768.0,86766.0,0.00017285]
[1763666469203,0.56027,86767.0,86749.0,0.3618]
[1763666469403,0.00215948,86750.0,86749.0,0.36157122]
[1763666469605,0.20162948,86750.0,86749.0,0.36157122]
[1763666469904,0.20162948,86750.0,86749.0,0.00077122]
[1763666470107,0.20162948,86750.0,86740.0,0.3608]
[1763666470301,0.09566948,86750.0,86749.0,0.00077122]
[1763666470600,0.20162948,86750.0,86749.0,0.00077122]
[1763666471105,0.09566948,86750.0,86749.0,0.00077122]
[1763666471309,0.20162948,86750.0,86736.0,0.00017285]
[1763666471503,0.19947,86737.0,86736.0,0.00017285]
[1763666471704,0.20162948,86737.0,86736.0,0.00017285]
[1763666472008,0.19947,86726.0,86715.0,0.3608]
[1763666472205,0.00215948,86716.0,86715.0,0.44768122]
[1763666472406,0.00215948,86716.0,86715.0,0.53379122]
[1763666473497,0.00017296,86724.0,86715.0,0.44768122]
[1763666473697,0.04095755,86739.0,86738.0,0.0115428]
[1763666473905,0.00215948,86739.0,86738.0,0.00077122]
[1763666474110,0.00215948,86739.0,86738.0,0.00067122]
[1763666474305,0.04095755,86748.0,86738.0,0.36147122]
[1763666474506,0.04095755,86757.0,86756.0,0.17222]
[1763666474719,0.0916664,86775.0,86758.0,0.17222]
[1763666474720,0.00219803,86767.0,86758.0,0.17222]
[1763666474911,0.00017233,86765.0,86764.0,0.44681]
[1763666475113,0.20184036,86765.0,86764.0,0.36137122]
[1763666475313,0.20184036,86765.0,86759.0,0.3608]
[1763666475612,0.19947,86760.0,86748.0,0.36097296]
[1763666475821,0.19947,86760.0,86749.0,0.00057122]
[1763666475998,0.00219803,86750.0,86749.0,0.00057122]
[1763666476399,0.00219803,86750.0,86749.0,0.44691]
[1763666476611,0.001,86757.0,86756.0,0.0115404]
[1763666476799,0.00319803,86757.0,86756.0,0.3723404]
[1763666477000,0.001,86757.0,86756.0,0.3723404]